[Event "13th Rheinland-Pfalz-Open 2023"]
[Site "Neuwied-Engers"]
[Date "2023.06.11"]
[Round "7.6"]
[White "Kotyk, Michael"]
[Black "Latzke, Boris"]
[Result "0-1"]
[Annotator "TA"]
[ECO "E44"]
[WhiteElo "2089"]
[BlackElo "2169"]
[PlyCount "30"]
[EventDate "2023.01.12"]
[EventType "swiss"]
[EventCountry "GER"]
[SourceTitle "playchess.com"]
[Source "ChessBase"]
[SourceQuality "1"]
[TimeControl "40/5400+30:1800+30"]

{[%evp 12,30,16,-10,0,-12,-5,-25,-38,-136,-131,-191,-181,-189,-181,-422,-421,-439,-396,-419,-385]} 1. d4 {[%emt 0:00:03]} Nf6 {[%emt 0:00:09][%cal Bg8f6,Bf6e4,Be4c3][%mdl 32]} 2. c4 {[%emt 0:00:04]} e6 {[%emt 0:00:09]} 3. Nc3 {[%emt 0:00:03]} Bb4 {[%emt 0:00:10]} 4. e3 {[%emt 0:00:02]} b6 {[%emt 0:03:07]} 5. Nge2 {[%emt 0:01:51]} Ne4 {[%emt 0:02:20]} 6. Qc2 {[%emt 0:09:04]} Bb7 {[%emt 0:00:59]} 7. f3 {[%emt 0:00:07]} Nxc3 {[%emt 0:07:57] E44: Nimzo-Indian: Rubinstein: 4...b6 5 Ne2.} 8. Nxc3 {[%emt 0:00:29]} Qh4+ {[%emt 0:02:34]} 9. g3 {[%emt 0:01:18]} Qh5 {[%emt 0:01:12] [#] Black has an edge.} 10. e4 $146 {[%emt 0:01:45]} (10. g4 $15 Qh4+ 11. Qf2) ({Predecessor:} 10. g4 Qh4+ 11. Qf2 Bxc3+ 12. bxc3 Qxf2+ 13. Kxf2 d6 14. Ba3 Nc6 15. Rb1 O-O-O 16. Be2 {0-1 Gonzalez Garcia,G (2207)-Larsen,B (2522) Las Palmas op 1999 (6)}) 10... Nc6 $1 $17 {[%emt 0:09:46] Black is more active.} (10... Qxf3 $6 11. Bg2 Qg4 12. O-O $11) 11. Qf2 {[%emt 0:10:41] [#]} (11. d5 $17 Nd4 12. Qd1) 11... Nxd4 $1 $19 {[%emt 0:12:47][%mdl 576] Deflection} 12. Qxd4 {[%emt 0:00:34]} Qxf3 {[%emt 0:00:17]} 13. Rg1 {[%emt 0:00:01]} (13. Qxg7 {only move.} O-O-O 14. Rg1) 13... Bc5 {[%emt 0:01:56][%mdl 64] Skewer} ({Less strong is} 13... Bxe4 14. Bg2 (14. Qxg7 f6 $16) 14... Bc5 15. Bxf3 $18 (15. Nxe4 Bxd4 16. Bxf3 Bxg1 $14) (15. Qxe4 Qf2+ 16. Kd1 Qxg1+ 17. Kc2 c6 $15)) (13... Qxe4+ 14. Be3 $16) 14. Qxg7 {[%emt 0:00:06] [#]} Qf2+ $1 {[%emt 0:09:22]} ({Not} 14... Bf2+ 15. Kd2 Bxg1 16. Qxh8+ $14) 15. Kd1 {[%emt 0:00:02]} Bd4 {[%emt 0:00:21] White did not feel at home in the position after the opening.   Weighted Error Value: White=0.83/Black=0.00 (flawless)} 0-1

[Event "13th Rheinland-Pfalz-Open 2023"]
[Site "Neuwied-Engers"]
[Date "2023.06.11"]
[Round "7.7"]
[White "Boidman, Yuri"]
[Black "Chassard, Cedric"]
[Result "0-1"]
[Annotator "TA"]
[ECO "C85"]
[WhiteElo "2304"]
[BlackElo "2094"]
[PlyCount "100"]
[EventDate "2023.01.12"]
[EventType "swiss"]
[EventCountry "GER"]
[SourceTitle "playchess.com"]
[Source "ChessBase"]
[SourceQuality "1"]
[TimeControl "40/5400+30:1800+30"]

{[%evp 14,100,10,0,0,-8,4,-37,-4,-10,4,-7,14,15,16,18,27,7,6,11,19,0,3,2,0,-2,37,-38,-32,-43,-39,-36,-18,-18,-21,-18,-29,-70,-54,-51,-30,-246,-265,-503,-499,-29981,-29981,-29981,-29982,-29982,-29983,-29983,-514,-533,-510,-529,-531,-540,-540,-533,-540,-540,-540,-540,-540,-540,-538,-538,-513,-513,-499,-499,-499,-512,-449,-442,-438,-939,-832,-1851,-1729,-2010,-1840,-29979,-29980,-29980,-29977,-29977,-29975]} 1. e4 {[%emt 0:00:06]} e5 {[%emt 0:00:05]} 2. Nf3 {[%emt 0:00:10]} Nc6 {[%emt 0:00:08]} 3. Bb5 {[%emt 0:00:09]} a6 {[%emt 0:00:05]} 4. Ba4 {[%emt 0:00:08]} Nf6 {[%emt 0:00:03][%cal Bg8f6,Bf6d7,Bd7c5][%mdl 32]} 5. O-O {[%emt 0:00:26]} Be7 {[%emt 0:00:06]} 6. Bxc6 {[%emt 0:00:18]} dxc6 {[%emt 0:00:09]} 7. d3 {[%emt 0:00:08]} Nd7 {[%emt 0:00:17]} 8. b3 {[%emt 0:00:24]} f6 {[%emt 0:00:34] C85: Closed Ruy Lopez: Deferred Exchange Variation.} 9. Bb2 {[%emt 0:01:18]} Nc5 {[%emt 0:02:31]} 10. Nbd2 {[%emt 0:00:34][%cal Bb1d2,Bd2c4,Bc4e3][%mdl 32]} Ne6 {[%emt 0:02:57] Black is slightly better.} 11. Nc4 {[%emt 0:00:28]} c5 {[%emt 0:04:21]} 12. Ne3 {[%emt 0:03:56]} Nd4 {[%emt 0:01:15]} 13. c3 {[%emt 0:02:44]} Nxf3+ {[%emt 0:01:58]} 14. Qxf3 {[%emt 0:00:27] [#]} O-O $146 {[%emt 0:02:07]} ({Predecessor:} 14... Be6 15. Rad1 O-O 16. d4 cxd4 17. cxd4 exd4 18. Bxd4 Qe8 19. Nf5 {½-½ Baier,P (2101)-Sojka,A (2118) CZE-chT2F 1213 2012 (7.23)}) 15. Rad1 {[%emt 0:00:12]} c6 {[%emt 0:03:16]} 16. Nf5 {[%emt 0:00:32]} Bxf5 {[%emt 0:11:20]} 17. Qxf5 {[%emt 0:00:19]} Qc8 {[%emt 0:00:13]} 18. Qh5 {[%emt 0:01:00]} Qe6 {[%emt 0:01:54]} 19. f4 {[%emt 0:00:30]} f5 {[%emt 0:16:44][%cal Oc5c4,Bf6f5,Bf5e4][%mdl 32]} (19... exf4 {simplifies} 20. Rxf4 g6 21. Qe2 a5) 20. fxe5 {[%emt 1:26:41]} (20. g4 $14) 20... fxe4 $1 $15 {[%emt 0:01:09]} 21. d4 {[%emt 0:00:00]} Rxf1+ {[%emt 0:06:49]} 22. Rxf1 {[%emt 0:00:00]} cxd4 {[%emt 0:01:19]} 23. cxd4 {[%emt 0:00:00]} c5 {[%emt 0:00:26]} 24. Qe2 {[%emt 0:00:00]} Qd5 {[%emt 0:04:07]} 25. dxc5 {[%emt 0:00:00]} Bxc5+ {[%emt 0:00:16]} 26. Kh1 {[%emt 0:00:00]} Qd3 {[%emt 0:09:59] Wards off Rd1} 27. Re1 {[%emt 0:00:00] Now White is beyond hope.} (27. Qxd3 $11 {and White has nothing to worry.} exd3 28. Rd1) 27... Rf8 $19 {[%emt 0:04:18][%cal Ba8f8,Bf8f2,Bf2f1][%mdl 32] ( -> ...Qxe2)} 28. h3 $2 {[%emt 0:00:00]} (28. Qxd3 exd3 29. Bc3) 28... Rf2 {[%emt 0:09:05][%mdl 64] [#] Skewer} 29. Qg4 {[%emt 0:00:00]} (29. Qxd3 $19 exd3 30. Rb1) 29... Rf1+ {[%emt 0:01:18]} (29... Rxb2 30. Qe6+ Kf8 31. Qc8+ Kf7 32. e6+ (32. Qxc5 Rxg2 33. Qc7+ Kg6 $11) 32... Kg6 33. Qxc5 $11) 30. Kh2 {[%emt 0:00:00]} Bg1+ {[%emt 0:02:17]} ({Weaker is} 30... Rxe1 31. Qe6+ Kf8 32. Qc8+ Kf7 33. Qxc5 $15) 31. Kh1 {[%emt 0:00:00]} Bf2+ {[%emt 0:00:37]} 32. Kh2 {[%emt 0:00:00]} Bg3+ {[%emt 0:00:33]} (32... Bxe1 $142 33. Qe6+ Rf7 34. Qc8+ Rf8 35. Qe6+ Kh8 36. Qg4 Bd2 37. Qh4 Bf4+ 38. Qxf4 Rxf4 39. e6 e3 40. Be5 Qe4 41. e7 Qxe5 42. e8=Q+ Qxe8 43. g4 Rf2+ 44. Kg3 g5 45. h4 Qe5+ 46. Kh3 Rh2#) 33. Qxg3 {[%emt 0:00:00]} Qxg3+ {[%emt 0:00:05][%mdl 64] [#] Remove Defender} 34. Kxg3 {[%emt 0:00:00]} Rxe1 {[%emt 0:00:03][%mdl 4096] Endgame KR-KB} 35. Kf2 {[%emt 0:00:00]} Rb1 {[%emt 0:00:45]} 36. Bd4 {[%emt 0:00:00]} Kf7 {[%emt 0:00:35]} 37. Ke3 {[%emt 0:00:00]} Ke6 {[%emt 0:01:28]} 38. Kxe4 {[%emt 0:00:00]} Re1+ {[%emt 0:00:11]} 39. Kd3 {[%emt 0:00:00]} Kd5 {[%emt 0:00:16] And now ...Rd1+ would win.} 40. Kd2 {[%emt 0:00:00] Prevents Rd1+.} Rf1 {[%emt 0:00:28]} 41. Ke2 {[%emt 0:00:00]} Rb1 {[%emt 0:30:50]} 42. e6 {[%emt 0:00:00]} Kxe6 {[%emt 0:00:22]} ({But not} 42... Kxd4 43. e7 Kc3 44. e8=Q $18 (44. e8=R b5 $17)) 43. Bxg7 {[%emt 0:00:00]} Rg1 {[%emt 0:00:08]} 44. Kf3 {[%emt 0:00:00]} Rc1 {[%emt 0:00:19]} 45. a4 {[%emt 0:00:00]} (45. g3 $142) 45... Rb1 {[%emt 0:00:06]} 46. h4 {[%emt 0:00:00]} Rxb3+ {[%emt 0:00:04]} 47. Kf4 {[%emt 0:00:00]} Rb4+ {[%emt 0:00:11]} 48. Kg5 {[%emt 0:00:00]} Rxa4 {[%emt 0:00:18] Black mates.} 49. g4 {[%emt 0:00:00]} b5 {[%emt 0:00:36]} 50. h5 {[%emt 0:00:00]} Rc4 {[%emt 0:00:16] Weighted Error Value: White=0.77/Black=0.22 (precise)} 0-1

[Event "13th Rheinland-Pfalz-Open 2023"]
[Site "Neuwied-Engers"]
[Date "2023.06.11"]
[Round "7.8"]
[White "du Maire, Jerome"]
[Black "Syrov, Arkadi"]
[Result "1-0"]
[Annotator "TA"]
[ECO "A62"]
[WhiteElo "2129"]
[BlackElo "2298"]
[PlyCount "59"]
[EventDate "2023.01.12"]
[EventType "swiss"]
[EventCountry "GER"]
[SourceTitle "playchess.com"]
[Source "ChessBase"]
[SourceQuality "1"]
[TimeControl "40/5400+30:1800+30"]

{[%evp 18,59,24,24,34,27,22,5,31,32,31,24,29,15,27,53,86,88,68,0,204,208,222,228,203,202,583,575,656,476,571,588,653,649,907,772,1133,1129,1111,1112,1282,1289,1246,1223]} 1. d4 {[%emt 0:00:02]} Nf6 {[%emt 0:00:06]} 2. c4 {[%emt 0:00:06]} c5 {[%emt 0:00:13]} 3. d5 {[%emt 0:00:14]} e6 {[%emt 0:00:08]} 4. Nc3 {[%emt 0:00:27]} exd5 {[%emt 0:00:11]} 5. cxd5 {[%emt 0:00:06]} d6 {[%emt 0:00:05]} 6. g3 {[%emt 0:00:14]} g6 {[%emt 0:00:08]} 7. Bg2 {[%emt 0:00:09]} Bg7 {[%emt 0:00:06]} 8. Nf3 {[%emt 0:00:07]} O-O {[%emt 0:00:08]} 9. O-O {[%emt 0:00:08]} Re8 {[%emt 0:00:06]} 10. Bf4 {[%emt 0:00:16]} h6 {[%emt 0:01:06] A62: Modern Benoni: Fianchetto Variation without early ...Nbd7.} 11. Qc1 {[%emt 0:04:33] The main line 11.Qc1 scores better than 11.Re1.} g5 {[%emt 0:01:21]} 12. Be3 {[%emt 0:00:43]} Bf5 {[%emt 0:00:34] The position is equal.} 13. h4 {[%emt 0:00:36]} g4 {[%emt 0:00:08]} 14. Nd2 {[%emt 0:01:58][%cal Bf3d2,Bd2c4,Bc4b6,Bb6a8][%mdl 32] Nc4 is the strong threat.} Rxe3 $1 {[%emt 0:02:27]} 15. fxe3 {[%emt 0:00:41]} Bg6 {[%emt 0:00:06]} 16. Nc4 {[%emt 0:03:39]} a6 {[%emt 0:00:44] [#]} 17. a4 {[%emt 0:00:55]} Nh5 {[%emt 0:00:55] [#]} 18. Kh2 $146 {[%emt 0:06:23]} (18. Qe1 $14) ({Predecessor:} 18. Qe1 Qe7 19. Qf2 Nd7 20. a5 f5 21. Ra4 Rb8 22. Ra3 Ne5 23. Nd2 b5 24. axb6 Rxb6 {0-1 Shahaliyev,I (2380)-Ahmadzada,A (2467) AZE-ch Prelim 76th 2022 (7)}) 18... Qe7 $2 {[%emt 0:13:17]} (18... Nd7 $1 $11 {and Black is okay.}) 19. Nb6 $18 {[%emt 0:07:36]} Be5 {[%emt 0:15:21]} 20. Rf4 {[%emt 0:02:02]} (20. Nxa8 $2 {loses.} Qxh4+ 21. Kg1 Bxg3 $19) 20... Nd7 {[%emt 0:04:51]} 21. Nxa8 {[%emt 0:02:57][%cal Oa4a5] [#] Strongly threatening a5!} Nxg3 $2 {[%emt 0:01:03]} (21... Qd8 22. Be4 (22. Rxg4 Ndf6 $14) 22... Ndf6) 22. Kxg3 {[%emt 0:01:48] White is clearly winning.} Nf6 {[%emt 0:00:05]} 23. Qd2 {[%emt 0:41:13][%cal Oa8b6] aiming for Nb6!} Nh5+ {[%emt 0:01:24]} 24. Kxg4 {[%emt 0:09:03]} Qd7+ {[%emt 0:07:00]} 25. Kf3 {[%emt 0:00:51]} Nxf4 {[%emt 0:00:29]} 26. exf4 {[%emt 0:00:25]} Qf5 {[%emt 0:00:04]} 27. Kg3 {[%emt 0:02:05]} Bf6 {[%emt 0:02:13]} 28. e4 {[%emt 0:01:51]} Qh5 {[%emt 0:00:06]} 29. Rh1 {[%emt 0:00:40] Black must now prevent Bf3.} Bh7 {[%emt 0:00:18]} 30. Qe2 {[%emt 0:00:28] Weighted Error Value: White=0.32/Black=0.70} 1-0

[Event "13th Rheinland-Pfalz-Open 2023"]
[Site "Neuwied-Engers"]
[Date "2023.06.11"]
[Round "7.9"]
[White "Weber, Samuel"]
[Black "Perske, Paul"]
[Result "0-1"]
[Annotator "TA"]
[ECO "C47"]
[WhiteElo "2296"]
[BlackElo "2092"]
[PlyCount "84"]
[EventDate "2023.01.12"]
[EventType "swiss"]
[EventCountry "GER"]
[SourceTitle "playchess.com"]
[Source "ChessBase"]
[SourceQuality "1"]
[TimeControl "40/5400+30:1800+30"]

{[%evp 16,83,20,35,17,0,0,12,0,0,9,0,7,0,24,-15,-11,-35,-20,-50,-18,-41,-43,-38,-35,-44,-29,-99,-82,-101,-80,-66,-84,-72,-76,-103,-103,-129,-129,-300,-290,-495,-488,-454,-468,-727,-656,-1652,-652,-29980,-921,-3044,-916,-912,-915,-897,-875,-875,-853,-1435,-1453,-29994,-29991,-29996,-29991,-29997,-29992,-29998,-29999,-29999]} 1. e4 {[%emt 0:00:17]} e5 {[%emt 0:00:12]} 2. Nc3 {[%emt 0:00:05]} Nf6 {[%emt 0:00:14]} 3. g3 {[%emt 0:00:02]} d5 {[%emt 0:01:00]} 4. exd5 {[%emt 0:00:31]} Nxd5 {[%emt 0:00:08]} 5. Bg2 {[%emt 0:00:05]} Nxc3 {[%emt 0:00:27]} 6. bxc3 {[%emt 0:00:09]} Nc6 {[%emt 0:00:15]} 7. Nf3 {[%emt 0:00:04][%cal Bg1f3,Bf3d2,Bd2c4][%mdl 32]} Be7 {[%emt 0:01:15]} 8. O-O {[%emt 0:00:04]} O-O {[%emt 0:01:48]} 9. Re1 {[%emt 0:00:35]} Bf6 {[%emt 0:01:07] C47: Scotch Four Knights and Four Knights with 4 g3.} 10. Rb1 {[%emt 0:00:32]} Rb8 {[%emt 0:07:24]} 11. d3 {[%emt 0:01:16]} b6 {[%emt 0:00:06] The position is equal.} 12. Nd2 {[%emt 0:03:47]} Bb7 {[%emt 0:00:36]} 13. Nc4 {[%emt 0:03:02]} Re8 {[%emt 0:01:03] [#]} 14. Qg4 $146 {[%emt 0:02:11]} ({Predecessor:} 14. h4 Na5 15. Bxb7 Nxb7 16. Qg4 Qd5 17. Bd2 Nd6 18. Ne3 Qe6 19. Qa4 a6 20. Qc6 {1-0 Kozganbay,E (2368)-Mezentsev,I (1963) Izhevsk Corporation Cup 6th 2014 (2)}) 14... Qc8 {[%emt 0:06:04]} 15. Qh5 {[%emt 0:01:02]} (15. Qxc8 {simplifies} Rbxc8 16. Bd2 Nd8 17. a4) 15... g6 {[%emt 0:01:52]} 16. Qh6 {[%emt 0:00:04]} (16. Qh3 {simplifies} Qxh3 17. Bxh3 e4 18. d4) 16... Ne7 {[%emt 0:17:19][%cal Bc6e7,Be7d5,Bd5e3][%mdl 32]} 17. Bxb7 {[%emt 0:10:26]} Rxb7 {[%emt 0:00:17]} 18. Ba3 {[%emt 0:04:56][%cal Oa3e7]} (18. Nxe5 Nf5 19. Qf4 g5 $17) 18... Nd5 {[%emt 0:01:02]} 19. Qd2 {[%emt 0:00:11]} Rb8 {[%emt 0:03:00]} 20. Ne3 {[%emt 0:01:34]} Nxe3 {[%emt 0:02:33]} 21. fxe3 {[%emt 0:00:16]} (21. Qxe3 $11 c5 22. c4) 21... e4 {[%emt 0:01:59]} 22. Rf1 {[%emt 0:01:37]} Qe6 {[%emt 0:02:26]} 23. d4 {[%emt 0:01:41]} Qxa2 {[%emt 0:04:16]} 24. Rb3 {[%emt 0:00:48]} Be7 {[%emt 0:01:24]} 25. Qf2 {[%emt 0:01:54]} f5 {[%emt 0:01:52][%cal Bf7f5,Bf5g4][%mdl 32]} (25... Bxa3 $6 26. Qxf7+ Kh8 27. Qf6+ (27. Qxc7 Rf8 $11) 27... Kg8 28. Qf7+ Kh8 29. Qf6+ (29. Qxc7 Rbc8 $11) 29... Kg8 30. Qf7+ $11) 26. Bb2 {[%emt 0:00:54]} Qa6 {[%emt 0:01:33] Black is more active.} 27. g4 $2 {[%emt 0:00:06] White does not recover from this.} Rf8 $19 {[%emt 0:01:16]} (27... fxg4 $2 28. Qf7+ Kh8 29. c4 $18) 28. Qg2 {[%emt 0:00:27]} (28. g5) 28... fxg4 {[%emt 0:01:49] [#] ...Rf3 is the strong threat.} 29. Ra1 {[%emt 0:00:02]} Qc4 {[%emt 0:01:12] White must now prevent ...Rf3.} 30. Qxe4 {[%emt 0:01:37]} (30. Ba3 $142 Bxa3 31. Rbxa3) 30... Bg5 {[%emt 0:06:19] Threatens to win with ...Rf3.} 31. Rb4 {[%emt 0:04:29]} Qf7 {[%emt 0:01:15]} (31... Qe2 $142 32. Qd5+ Rf7 33. Qxg5 Rbf8 34. Qd5 Kg7 35. Qe5+ Kh6 36. Qf4+ Rxf4 37. exf4 Qe3+ 38. Kg2 Rxf4 39. d5 Rf2+ 40. Kg1 Rxc2+ {[%mdl 64] Discovered Attack} 41. Kh1 Qf3+ 42. Kg1 Qg2#) 32. Rb5 {[%emt 0:00:53]} Qf2+ {[%emt 0:08:11]} 33. Kh1 {[%emt 0:00:10]} Bxe3 {[%emt 0:00:22]} (33... Qe2 $142 34. Rg1 Qxb5 35. Qxg4 Bxe3 36. Qe6+ Rf7) 34. Qxg4 {[%emt 0:03:31]} Rbe8 {[%emt 0:05:58][%cal Oe3c1]} ({Worse is} 34... Qxc2 35. Qe6+ (35. Rxa7 $2 {gets mated.} Rf1+) 35... Kh8 36. Qe5+ (36. Qxe3 Rbe8 $15) 36... Kg8 37. Qe6+ (37. Qxe3 $2 Rbe8 $19) 37... Kh8 38. Qe5+ (38. Qxe3 Rbe8 $15) 38... Kg8 39. Qe6+ $11 (39. Qxe3 $2 Rbe8 $19)) 35. Qg2 {[%emt 0:01:17]} Qxg2+ {[%emt 0:02:25]} 36. Kxg2 {[%emt 0:00:40]} Rf2+ {[%emt 0:00:05]} 37. Kg3 {[%emt 0:00:14]} Ref8 {[%emt 0:01:38][%cal Be8f8,Bf8f3,Bf3f4,Bf4g4][%mdl 32] [#] ( -> ...R8f3+)} 38. Rh1 {[%emt 0:00:12]} h5 {[%emt 0:02:22] Black mates.} 39. Bc1 {[%emt 0:00:11]} R8f3+ {[%emt 0:00:39]} 40. Kh4 {[%emt 0:00:06]} Rf4+ {[%emt 0:00:21]} 41. Kg3 {[%emt 0:30:24]} Rg4+ {[%emt 0:30:11]} 42. Kh3 {[%emt 0:00:04]} Rf3# {[%emt 0:00:05] An entertaining game by Perske.   Weighted Error Value: White=0.77/Black=0.28 (precise)} 0-1

[Event "13th Rheinland-Pfalz-Open 2023"]
[Site "Neuwied-Engers"]
[Date "2023.06.11"]
[Round "7.10"]
[White "Thier, Simon"]
[Black "Ollenberger, Roland"]
[Result "0-1"]
[Annotator "TA"]
[ECO "A04"]
[WhiteElo "1991"]
[BlackElo "2280"]
[PlyCount "116"]
[EventDate "2023.01.12"]
[EventType "swiss"]
[EventCountry "GER"]
[SourceTitle "playchess.com"]
[Source "ChessBase"]
[SourceQuality "1"]
[TimeControl "40/5400+30:1800+30"]

{[%evp 9,116,0,17,12,36,29,55,9,14,0,0,0,0,0,3,0,10,0,0,21,25,18,25,-1,62,51,79,83,61,75,167,175,198,195,217,201,166,161,178,164,162,164,183,148,245,227,175,178,328,338,344,345,335,333,344,343,343,344,335,325,289,0,0,-335,-340,-353,-342,-346,-340,-320,-334,-338,-337,-326,-313,-337,-333,-311,-244,-323,-231,-292,-279,-402,-410,-407,-403,-811,-799,-1048,-1000,-1041,-1015,-1019,-1015,-1247,-1080,-1644,-1054,-5077,-4718,-5628,-4741,-29969,-29972,-29969,-29972,-29960,-6916]} 1. Nf3 {[%emt 0:00:03]} g6 {[%emt 0:00:06]} 2. g3 {[%emt 0:00:13]} Bg7 {[%emt 0:00:05]} 3. Bg2 {[%emt 0:00:09]} e5 {[%emt 0:00:14]} 4. e4 {[%emt 0:00:36]} Nc6 {[%emt 0:00:09]} 5. O-O {[%emt 0:00:30]} d6 {[%emt 0:00:30]} 6. c3 {[%emt 0:00:30] A04: Unusual lines after 1 Nf3 and King's Indian Attack.} Nf6 {[%emt 0:00:30]} 7. d4 {[%emt 0:00:30]} exd4 {[%emt 0:00:30]} (7... Nxe4 $2 8. d5 $16) 8. Nxd4 {[%emt 0:00:30]} (8. cxd4 $14 d5 9. e5) 8... Bd7 {[%emt 0:00:30] [#]} 9. Be3 $146 {[%emt 0:00:30]} ({Predecessor:} 9. Re1 O-O 10. h3 Re8 11. Na3 a5 12. Nac2 a4 13. Bd2 Qc8 14. Kh2 Ne5 15. Qe2 {0-1 Alfred,N (2215)-Houska,M (2375) BCF-chT2 9899 (4NCL) 1998 (5.1)}) 9... O-O {[%emt 0:00:30]} 10. h3 {[%emt 0:00:30]} Re8 {[%emt 0:00:30]} 11. Nd2 {[%emt 0:00:30]} Qc8 {[%emt 0:00:30]} 12. g4 {[%emt 0:00:30]} h5 {[%emt 0:00:30][%cal Rh5g4]} 13. g5 {[%emt 0:00:30]} Nh7 {[%emt 0:00:30]} 14. Qf3 {[%emt 0:00:30]} Ne5 {[%emt 0:00:30]} 15. Qg3 {[%emt 0:00:30]} c5 {[%emt 0:00:30]} 16. N4f3 {[%emt 0:00:30]} Be6 {[%emt 0:00:30]} ({Black should try} 16... Nf8 $11) 17. Nh4 $14 {[%emt 0:00:30]} Nc4 {[%emt 0:00:30]} 18. Nxc4 {[%emt 0:00:30]} Bxc4 {[%emt 0:00:30]} 19. Rfd1 {[%emt 0:00:30]} Re6 {[%emt 0:00:30]} (19... Be2 $16 {might work better.}) 20. f4 $18 {[%emt 0:00:30][%cal Bf2f4,Bf4f5][%mdl 32] Strongly threatening f5.} (20. Rxd6 Be5 21. Bf4 Rxd6 $15) 20... Nf8 {[%emt 0:00:30]} 21. f5 {[%emt 0:00:30]} Be5 {[%emt 0:00:30]} 22. Bf4 {[%emt 0:00:30]} Re7 {[%emt 0:00:30]} 23. b3 {[%emt 0:00:30]} Bb5 {[%emt 0:00:30]} 24. Bxe5 {[%emt 0:00:30]} dxe5 {[%emt 0:00:30]} 25. Rd6 {[%emt 0:00:30][%cal Rf5g6]} Qe8 {[%emt 0:00:30]} 26. a4 $36 {[%emt 0:00:30][%mdl 2048] White is really pushing.} Bc6 {[%emt 0:00:30]} (26... Rd7 $16) 27. Rf1 {[%emt 0:00:30]} Rd8 {[%emt 0:00:30]} 28. Rf6 {[%emt 0:00:30] Qf3 would be deadly.} Red7 {[%emt 0:00:30]} (28... c4 $142) 29. fxg6 {[%emt 0:00:30]} Nxg6 {[%emt 0:00:30]} 30. Nf5 {[%emt 0:00:30]} Nf4 {[%emt 0:00:30]} 31. Rxf4 {[%emt 0:00:30]} exf4 {[%emt 0:00:30]} 32. Qxf4 {[%emt 0:00:30]} Rd1+ {[%emt 0:00:30]} 33. Kh2 {[%emt 0:00:30] Threatening mate with Nh6+.} R8d7 {[%emt 0:00:30][%cal Oc5c4]} 34. Nh6+ {[%emt 0:00:30]} Kg7 {[%emt 0:00:30][%cal Oc5c4] [#]} (34... Kf8 $2 35. Rg6 $18) 35. g6 $2 {[%emt 0:00:30]} fxg6 $11 {[%emt 0:00:30][%cal Oc6e4] Hoping for ...Bxe4!} 36. Qg5 $2 {[%emt 0:00:30][%mdl 8192]} (36. Nf5+ $11 {and White stays safe.} Kg8 37. Nh6+ Kg7 38. Nf5+ gxf5 39. Qh6+ Kg8 40. Rg6+ (40. exf5 $2 Qe5+) 40... Qxg6 {[%mdl 64] Remove Defender} 41. Qxg6+ Rg7 42. Qxf5 (42. Qe6+ Kh7 $11)) 36... Bxe4 $19 {[%emt 0:00:30]} 37. Bxe4 {[%emt 0:00:30]} Qxe4 {[%emt 0:00:30]} 38. Nf5+ {[%emt 0:00:30] [#]} Qxf5 $3 {[%emt 0:00:30][%mdl 512]} 39. Rxf5 {[%emt 0:00:30]} R7d2+ {[%emt 0:00:30]} 40. Kg3 {[%emt 0:00:30] White threatens Qe7+ and mate.} Rg1+ {[%emt 0:00:30]} 41. Kf4 {[%emt 0:30:30] White wants to mate with Qe7+.} Rxg5 {[%emt 0:30:30]} ({Weaker is} 41... Rf1+ 42. Ke3 Rxf5 43. Qe7+ Rf7 44. Qe5+ (44. Qxc5 Rfd7 $17) 44... Kh7 45. Kxd2 $18) 42. Rxg5 {[%emt 0:00:30][%mdl 4096] Endgame [#] KR-KR} b6 {[%emt 0:00:30]} 43. Rg3 {[%emt 0:00:30]} Kf6 {[%emt 0:00:30]} 44. Ke4 {[%emt 0:00:30]} Re2+ {[%emt 0:00:30]} 45. Kd3 {[%emt 0:00:30]} Rf2 {[%emt 0:00:30]} 46. a5 {[%emt 0:00:30]} (46. Ke4 $142) 46... h4 {[%emt 0:00:30]} (46... bxa5 $2 47. Re3 $19) 47. Re3 {[%emt 0:00:30]} Rg2 {[%emt 0:00:30] And now ...Rg3 would win.} (47... bxa5 $2 {is the wrong capture.} 48. Kc4 $19) 48. axb6 {[%emt 0:00:30]} (48. Ke4 $142 bxa5 49. Rf3+ Ke6 50. Rf4) 48... axb6 {[%emt 0:00:30]} 49. Ke4 {[%emt 0:00:30]} Kg5 {[%emt 0:00:30] Threatens to win with ...Rg3.} 50. Rd3 {[%emt 0:00:30]} Rg3 {[%emt 0:00:30] ...Rxd3 is the strong threat.} 51. Rd5+ {[%emt 0:00:30]} Kh6 {[%emt 0:00:30]} 52. Rd6 {[%emt 0:00:30]} Rxh3 {[%emt 0:00:30]} 53. Kf4 {[%emt 0:00:30]} Rxc3 {[%emt 0:00:30]} 54. Rxb6 {[%emt 0:00:30]} Kh5 {[%emt 0:00:30]} 55. Rb8 {[%emt 0:00:30]} g5+ {[%emt 0:00:30]} 56. Kf5 {[%emt 0:00:30]} Rf3+ {[%emt 0:00:30] Black mates.} 57. Ke4 {[%emt 0:00:30]} Kg4 {[%emt 0:00:30]} 58. Kd5 {[%emt 0:00:30]} Rc3 {[%emt 0:00:30] What a bad dream for White. Magnificent play by Ollenberger!   Weighted Error Value: White=0.73/Black=0.15 (very precise)} (58... h3 $142 59. Rh8 Rxb3 60. Kc4 Rb4+ 61. Kxc5 Rf4 62. Rh6 Kg3 63. Rh5 h2 64. Kd6 Rd4+ 65. Ke7 Rh4 66. Rxg5+ Kf4 67. Rb5 h1=Q 68. Rb4+ Kg5 69. Rb5+ Kg6 70. Kd6 Rd4+ 71. Kc5 Qd5+ 72. Kb6 Qc4 73. Rb1 Rd6+ 74. Kb7 Qc6+ 75. Ka7 Rd7+ 76. Kb8 Qc7+ 77. Ka8 Qa7#) 0-1